bitfinex/quotes_BTCUSD_20250512
["timestamp","ask_amount","ask_price","bid_price","bid_amount"]
[1747057574362,0.24758765,103910.0,103900.0,0.444]
[1747057574611,0.20758765,103910.0,103900.0,0.441]
[1747057574818,0.20958765,103910.0,103900.0,0.441]
[1747057576271,0.24948765,103910.0,103900.0,0.101]
[1747057576479,0.34534195,103910.0,103900.0,0.101]
[1747057576906,0.24948765,103910.0,103900.0,0.101]
[1747057577691,0.22938765,103910.0,103900.0,0.101]
[1747057577881,0.21921089,103910.0,103900.0,0.101]
[1747057580370,0.01411294,103910.0,103900.0,1.24745509]
[1747057580564,0.22583395,103910.0,103900.0,1.24745509]
[1747057580766,0.02373618,103910.0,103900.0,1.24745509]
[1747057580977,0.02373618,103910.0,103900.0,1.26805509]
[1747057580978,0.00348988,103910.0,103900.0,1.26805509]
[1747057581181,0.00248988,103910.0,103900.0,1.28755509]
[1747057581390,0.00248988,103910.0,103900.0,2.55700109]
[1747057581597,0.00248988,103910.0,103900.0,1.49630709]
[1747057581809,0.01211285,103910.0,103900.0,1.45430109]
[1747057582031,0.23345712,103910.0,103900.0,1.2789311]
[1747057582237,0.02173591,103910.0,103900.0,1.64945509]
[1747057582460,0.03135915,103910.0,103900.0,1.64945509]
[1747057582690,0.00248988,103910.0,103900.0,1.68895509]
[1747057583107,0.00248988,103910.0,103900.0,1.97762809]
[1747057583320,0.00248988,103910.0,103900.0,1.94155209]
[1747057583541,0.22383451,103910.0,103900.0,0.9388543]
[1747057583754,0.00248988,103910.0,103900.0,1.63783064]
[1747057583952,0.0217359,103910.0,103900.0,1.64483064]
[1747057584211,0.00248988,103910.0,103900.0,1.47002233]
[1747057584448,0.01211285,103910.0,103900.0,1.61479433]
[1747057584667,0.01211285,103910.0,103900.0,0.73314599]
[1747057584668,0.22383404,103910.0,103900.0,0.73314599]
[1747057584881,0.01211285,103910.0,103900.0,0.93526331]
[1747057585086,0.021736,103910.0,103900.0,0.94488757]
[1747057585322,0.21421108,103910.0,103900.0,0.008]
[1747057585544,0.25471108,103910.0,103900.0,0.008]
[1747057586184,0.20458765,103910.0,103900.0,0.004]
[1747057586393,0.22136631,103900.0,103890.0,0.55175791]
[1747057586635,0.22136585,103900.0,103890.0,0.57100838]
[1747057586858,0.22136585,103900.0,103890.0,0.34]
[1747057587066,0.20211732,103900.0,103890.0,0.34]
[1747057587475,0.20558747,103910.0,103900.0,0.19249278]
[1747057587674,0.01924825,103900.0,103890.0,1.13685222]
[1747057587872,0.03849659,103900.0,103890.0,1.14747713]
[1747057588073,0.24061391,103900.0,103890.0,1.13785222]
[1747057588367,0.21174177,103900.0,103890.0,0.341]
[1747057589233,0.20211741,103900.0,103890.0,0.342]
[1747057590676,0.24241741,103900.0,103890.0,0.002]
[1747057591111,0.39321741,103900.0,103890.0,0.002]
[1747057591530,0.48907171,103900.0,103890.0,0.002]
[1747057592081,0.50361256,103900.0,103890.0,0.002]
[1747057593154,0.21180255,103870.0,103860.0,0.002]
[1747057594394,0.21180255,103870.0,103860.0,0.00214664]
[1747057594599,0.21180255,103870.0,103860.0,0.00314664]
[1747057595301,0.40086255,103870.0,103860.0,0.00314664]
[1747057595450,0.40086255,103870.0,103860.0,0.00414664]
[1747057595853,0.40086255,103870.0,103860.0,0.0137748]
[1747057596053,0.01925418,103870.0,103860.0,0.22559746]
[1747057596228,0.52282968,103870.0,103860.0,0.20634189]
[1747057596426,0.22142968,103870.0,103860.0,0.21597005]
[1747057596663,0.21180273,103870.0,103860.0,0.21597014]
[1747057596845,0.21180273,103870.0,103860.0,0.54634189]
[1747057597064,0.21180273,103870.0,103860.0,0.34414664]
[1747057597267,0.20217569,103870.0,103860.0,0.34414664]
[1747057599241,0.24247569,103870.0,103860.0,0.00414664]
[1747057599421,0.22217569,103870.0,103860.0,0.00414664]
[1747057599627,0.24277569,103870.0,103860.0,0.00414664]
[1747057600500,0.19254643,103880.0,103860.0,1.01616337]
[1747057600715,0.2214295,103870.0,103860.0,1.01616384]
[1747057600901,0.2214295,103870.0,103860.0,0.53671355]
[1747057600902,0.23105673,103870.0,103860.0,0.53671355]
[1747057601146,0.22141001,103880.0,103870.0,0.21180273]
[1747057601372,0.21179431,103890.0,103880.0,0.53252984]
[1747057601579,0.01924973,103890.0,103880.0,1.0119741]
[1747057601797,0.22136603,103900.0,103890.0,0.20213678]
[1747057602015,0.21174186,103900.0,103890.0,0.45056591]
[1747057602227,0.21176169,103890.0,103880.0,1.51930256]
[1747057602459,0.01924825,103900.0,103890.0,0.21176197]
[1747057602675,0.00962482,103890.0,103880.0,1.53980182]
[1747057603119,0.02887492,103890.0,103880.0,1.53980182]
[1747057603325,0.01924973,103890.0,103880.0,1.53880182]
[1747057603534,0.02887492,103890.0,103880.0,1.53980182]
[1747057603781,0.21174158,103900.0,103890.0,0.55176197]
[1747057603995,0.21174195,103900.0,103890.0,0.34]
[1747057604210,0.21174195,103900.0,103890.0,0.55176215]
[1747057604436,0.21372139,103910.0,103900.0,0.00962463]
[1747057604646,0.03086945,103910.0,103900.0,1.00230713]
[1747057604860,0.23296741,103910.0,103900.0,0.99268314]
[1747057605078,0.22334454,103910.0,103900.0,0.99268323]
[1747057605206,0.22334454,103910.0,103900.0,0.55174158]
[1747057605411,0.22334454,103910.0,103900.0,0.55174177]
[1747057605622,0.21721127,103910.0,103900.0,0.34]
[1747057606723,0.22021127,103910.0,103900.0,0.34]
[1747057607160,0.22021127,103910.0,103900.0,0.55174177]
[1747057607373,0.01811275,103910.0,103900.0,1.02155611]
[1747057607594,0.00848988,103910.0,103900.0,1.31793126]
[1747057608017,0.00548988,103910.0,103900.0,1.31793126]
[1747057608909,0.00348988,103910.0,103900.0,1.31793126]
[1747057609558,0.00348988,103910.0,103900.0,1.72193126]
[1747057609776,0.002,103930.0,103920.0,0.56132296]
[1747057609990,0.00214688,103930.0,103920.0,2.66515093]
[1747057610647,0.00214688,103930.0,103920.0,2.58085302]
[1747057611055,0.19247229,103920.0,103900.0,0.2365414]
[1747057611326,0.20209489,103920.0,103910.0,0.0958543]
[1747057612079,0.20209489,103920.0,103910.0,0.4358543]
[1747057613016,0.20209489,103920.0,103910.0,0.001]
[1747057613247,0.24309489,103920.0,103910.0,0.001]
[1747057613448,0.33894919,103920.0,103910.0,0.004]
[1747057614335,0.24309489,103920.0,103910.0,0.001]
[1747057614760,0.22659489,103920.0,103910.0,0.001]
[1747057615239,0.20609489,103920.0,103910.0,0.001]
[1747057615440,0.20209777,103910.0,103900.0,0.82945045]
[1747057615665,0.23096806,103910.0,103900.0,0.34]
[1747057615927,0.23096806,103910.0,103900.0,0.35924917]
[1747057615928,0.22134491,103910.0,103900.0,0.35924917]
[1747057616135,0.20209796,103910.0,103900.0,0.34]
[1747057616351,0.19447229,103920.0,103900.0,0.55174158]
[1747057616565,0.22134426,103910.0,103900.0,0.54211741]
[1747057616779,0.22334426,103910.0,103900.0,0.55174195]
[1747057617046,0.2243451,103910.0,103900.0,0.34]
[1747057617285,0.2233451,103910.0,103900.0,0.34]
[1747057617532,0.21372158,103910.0,103900.0,0.34]
[1747057617752,0.21372158,103910.0,103900.0,0.341]
[1747057617989,0.21372158,103910.0,103900.0,0.34]
[1747057618213,0.20409768,103910.0,103900.0,1.03156722]
[1747057618526,0.21372139,103910.0,103900.0,0.81982582]
[1747057618774,0.21172139,103910.0,103900.0,0.34]
[1747057619471,0.21172139,103910.0,103900.0,0.341]
[1747057619942,0.21272139,103910.0,103900.0,0.341]
[1747057621736,0.20309749,103910.0,103900.0,0.65822005]
[1747057621952,0.22234463,103910.0,103900.0,0.63897162]
[1747057622163,0.22234463,103910.0,103900.0,1.15834569]
[1747057622164,0.001,103910.0,103900.0,1.15834569]
[1747057622376,0.001,103910.0,103900.0,1.17944569]
[1747057622611,0.001,103910.0,103900.0,0.91668012]
[1747057622612,0.21272121,103910.0,103900.0,0.91668012]
[1747057622847,0.21272121,103910.0,103900.0,0.4368543]
[1747057623078,0.23382121,103910.0,103900.0,0.001]
[1747057623308,0.21272121,103910.0,103900.0,0.001]
[1747057623549,0.20309787,103910.0,103900.0,0.00292472]
[1747057624045,0.20309787,103910.0,103900.0,0.001]
[1747057624534,0.20309787,103910.0,103900.0,0.00292473]
[1747057624768,0.001,103910.0,103900.0,0.21466631]
[1747057625014,0.001,103910.0,103900.0,0.84044569]
[1747057625250,0.02024602,103910.0,103900.0,0.84044569]
[1747057625476,0.22234436,103910.0,103900.0,0.29897162]
[1747057625728,0.21272158,103910.0,103900.0,0.0968543]
[1747057625981,0.21272158,103910.0,103900.0,0.30089633]
[1747057626219,0.21272158,103910.0,103900.0,0.0968543]
[1747057626454,0.21272139,103910.0,103900.0,0.31822024]
[1747057626684,0.001,103910.0,103900.0,0.80767014]
[1747057627163,0.001,103910.0,103900.0,1.18967014]
[1747057627385,0.001,103910.0,103900.0,3.17980999]
[1747057627808,0.001,103910.0,103900.0,2.85246999]
[1747057628018,0.001,103910.0,103900.0,2.80305599]
[1747057628239,0.00214688,103930.0,103920.0,0.56132296]
[1747057628461,0.21382679,103930.0,103920.0,0.64755513]
[1747057628671,0.22344855,103930.0,103920.0,0.64755513]
[1747057628887,0.22344855,103930.0,103920.0,0.65717745]
[1747057629103,0.22344855,103930.0,103920.0,1.06679968]
[1747057629282,0.01176809,103930.0,103920.0,1.55624763]
[1747057629570,0.22344818,103930.0,103920.0,1.53700327]
[1747057629799,0.22444809,103930.0,103920.0,1.53700327]
[1747057630038,0.23406976,103930.0,103920.0,1.52738095]
[1747057630278,0.2148266,103930.0,103920.0,1.52738095]
[1747057630512,0.00314688,103930.0,103920.0,1.55860308]
[1747057630753,0.0127679,103930.0,103920.0,1.54898095]
[1747057630991,0.0320106,103930.0,103920.0,1.53800308]
[1747057631178,0.04163236,103930.0,103920.0,1.05817726]
[1747057631453,0.23406948,103930.0,103920.0,0.8368543]
[1747057631691,0.21482725,103930.0,103920.0,0.4368543]
[1747057631916,0.21482725,103930.0,103920.0,0.341]
[1747057632170,0.25382725,103930.0,103920.0,0.341]
[1747057633392,0.25382725,103930.0,103920.0,0.001]
[1747057634107,0.23432725,103930.0,103920.0,0.001]
[1747057634798,0.21482725,103930.0,103920.0,0.001]
[1747057635027,0.20520576,103930.0,103920.0,0.001]
[1747057635487,0.24790576,103930.0,103920.0,0.001]
[1747057636204,0.04584688,103930.0,103920.0,0.001]
[1747057636450,0.00314688,103930.0,103920.0,1.01220785]
[1747057636677,0.00314688,103930.0,103920.0,0.4368543]
[1747057636678,0.21482715,103930.0,103920.0,0.4368543]
[1747057636918,0.21482715,103930.0,103920.0,0.001]
[1747057639047,0.25582715,103930.0,103920.0,0.001]
[1747057641148,0.80156588,103930.0,103920.0,0.001]
[1747057642081,0.35168145,103930.0,103920.0,0.001]
[1747057642506,0.34780084,103930.0,103920.0,0.001]
[1747057642794,0.01924473,103920.0,103910.0,0.98235347]
[1747057643022,0.21170102,103920.0,103910.0,0.34]
[1747057644151,0.21870102,103920.0,103910.0,0.34]
[1747057644833,0.01662232,103920.0,103910.0,1.107083]
[1747057645065,0.22432315,103920.0,103910.0,1.09745994]
[1747057645285,0.22432315,103920.0,103910.0,0.64757551]
[1747057645286,0.03186742,103920.0,103910.0,0.64757551]
[1747057645506,0.21321939,103940.0,103920.0,0.55170101]
[1747057645724,0.23092278,103930.0,103920.0,1.01120776]
[1747057645986,0.00962065,103940.0,103930.0,0.21168046]
[1747057646190,0.22128066,103940.0,103930.0,0.9919434]
[1747057646443,0.21363909,103950.0,103940.0,0.21166001]
[1747057646708,0.22325891,103950.0,103940.0,1.09739874]
[1747057646933,0.23287891,103950.0,103940.0,1.10701921]
[1747057647159,0.23287891,103950.0,103940.0,0.63789375]
[1747057647383,0.22325955,103950.0,103940.0,0.64751449]
[1747057647616,0.22325955,103950.0,103940.0,0.63789384]
[1747057647882,0.21364001,103950.0,103940.0,0.63789384]
[1747057648115,0.20402019,103950.0,103940.0,0.63789384]
[1747057648332,0.19840019,103950.0,103940.0,0.4358543]
[1747057648594,0.19840019,103950.0,103940.0,0.63789375]
[1747057648806,0.006,103950.0,103940.0,0.64751431]
[1747057649039,0.24949827,103950.0,103940.0,0.65713459]
[1747057649257,0.23687965,103950.0,103940.0,0.64751431]
[1747057649489,0.006,103950.0,103940.0,0.65713468]
[1747057649716,0.01261926,103950.0,103940.0,1.11663939]
[1747057649939,0.03185862,103950.0,103940.0,1.11663939]
[1747057650164,0.005,103950.0,103940.0,1.11663939]
[1747057650425,0.002,103950.0,103940.0,1.14683939]
[1747057650887,0.03085854,103950.0,103940.0,1.14683939]
[1747057651118,0.02123881,103950.0,103940.0,1.14683939]
[1747057651358,0.00961936,103950.0,103940.0,1.14683939]
[1747057651572,0.21162277,103960.0,103950.0,0.21163955]
[1747057651783,0.21162277,103960.0,103950.0,0.30749385]
[1747057652510,0.21162277,103960.0,103950.0,0.64749422]
[1747057652737,0.21162277,103960.0,103950.0,0.34]
[1747057652967,0.25462277,103960.0,103950.0,0.34]
[1747057653663,0.0288639,103930.0,103920.0,1.69902508]
[1747057653900,0.23092278,103930.0,103920.0,1.40450188]
[1747057654163,0.24054464,103930.0,103920.0,1.10906188]
[1747057654403,0.24054464,103930.0,103920.0,1.49943965]
[1747057654550,0.23092362,103930.0,103920.0,1.50906197]
[1747057654770,0.23092362,103930.0,103920.0,1.1186842]
[1747057655179,0.01924232,103930.0,103920.0,1.13630633]
[1747057655396,0.01924223,103930.0,103920.0,1.53630633]
[1747057655593,0.01923714,103960.0,103950.0,0.01923954]
[1747057655795,0.19436558,103970.0,103960.0,0.56123781]
[1747057655796,0.01161741,103970.0,103960.0,0.56123781]
[1747057655998,0.00214685,103970.0,103960.0,1.01112224]
[1747057656199,0.21374513,103970.0,103960.0,0.9918851]
[1747057656442,0.21374606,103970.0,103960.0,0.34]
[1747057656641,0.20412818,103970.0,103960.0,0.34]
[1747057656847,0.24562818,103970.0,103960.0,0.34]
[1747057657697,0.20412818,103970.0,103960.0,0.34]
[1747057657905,0.21374606,103970.0,103960.0,0.34]
[1747057658303,0.25814606,103970.0,103960.0,0.34]
[1747057658476,0.26214606,103970.0,103960.0,0.34]
[1747057659275,0.24254606,103970.0,103960.0,0.34]
[1747057659676,0.26214606,103970.0,103960.0,0.34]
[1747057660352,0.22174606,103970.0,103960.0,0.34]
[1747057660562,0.22125937,103950.0,103940.0,0.60203489]
[1747057660766,0.01923918,103950.0,103940.0,1.50701446]
[1747057661180,0.21163974,103950.0,103940.0,1.028273]
[1747057661394,0.21163974,103950.0,103940.0,1.03789375]
[1747057661602,0.21163974,103950.0,103940.0,1.47815743]
[1747057661851,0.21263974,103950.0,103940.0,1.04751422]
[1747057662026,0.21363974,103950.0,103940.0,0.63789375]
[1747057662261,0.21363974,103950.0,103940.0,0.6475144]
[1747057662918,0.03085816,103950.0,103940.0,0.66675524]
[1747057663149,0.23287882,103950.0,103940.0,0.65713496]
[1747057663329,0.22325937,103950.0,103940.0,0.66675543]
[1747057663535,0.23287937,103950.0,103940.0,0.66675543]
[1747057663732,0.03085918,103950.0,103940.0,0.67637533]
[1747057663902,0.01161926,103950.0,103940.0,1.12625976]
[1747057664083,0.23287799,103950.0,103940.0,1.12625976]
[1747057664300,0.002,103950.0,103940.0,1.12625976]
[1747057664500,0.01161926,103950.0,103940.0,1.14725976]
[1747057664765,0.04047807,103950.0,103940.0,1.14725976]
[1747057664893,0.03085825,103950.0,103940.0,1.14725976]
[1747057665091,0.24249789,103950.0,103940.0,1.09739901]
[1747057665323,0.22325918,103950.0,103940.0,1.0973992]
[1747057665493,0.21363964,103950.0,103940.0,1.50701995]
[1747057665912,0.21363964,103950.0,103940.0,1.1166406]
[1747057666118,0.21363964,103950.0,103940.0,1.0973992]
[1747057666484,0.22325955,103950.0,103940.0,0.64751477]
[1747057666605,0.22325955,103950.0,103940.0,0.4358543]
[1747057666606,0.21363992,103950.0,103940.0,0.4358543]
[1747057666805,0.21363992,103950.0,103940.0,0.34]
[1747057667860,0.25403992,103950.0,103940.0,0.34]
[1747057668678,0.23480019,103950.0,103920.0,0.002]
[1747057668881,0.21168027,103930.0,103920.0,0.19445573]
[1747057669133,0.028864,103930.0,103920.0,0.57294537]
[1747057669398,0.03848567,103930.0,103920.0,0.57294537]
[1747057669633,0.0192414,103940.0,103930.0,0.55168037]
[1747057669912,0.01924112,103940.0,103930.0,1.10704031]
[1747057670112,0.21165954,103940.0,103930.0,1.10704031]
[1747057670336,0.23090112,103940.0,103930.0,0.64753467]
[1747057670751,0.22128084,103940.0,103930.0,0.64753467]
[1747057670920,0.20203963,103940.0,103930.0,0.64753504]
[1747057671355,0.20203963,103940.0,103930.0,0.66677792]
[1747057671572,0.20203963,103940.0,103930.0,0.65715643]
[1747057671765,0.20203963,103940.0,103930.0,0.65715662]
[1747057672328,0.20203963,103940.0,103930.0,0.65815662]
[1747057672534,0.20203963,103940.0,103930.0,0.66777801]
[1747057672737,0.20203963,103940.0,103930.0,0.65815662]
[1747057673326,0.21166028,103940.0,103930.0,0.6773995]
[1747057673536,0.21166028,103940.0,103930.0,0.65815662]
[1747057674346,0.21166028,103940.0,103930.0,0.001]
[1747057674586,0.25046028,103940.0,103930.0,0.001]
[1747057674799,0.23076028,103940.0,103930.0,0.001]
[1747057675431,0.25186028,103940.0,103930.0,0.001]
[1747057675654,0.21165972,103940.0,103930.0,0.66448916]
[1747057675885,0.22128056,103940.0,103930.0,0.6529434]
[1747057676097,0.22128047,103940.0,103930.0,0.67218647]
[1747057676523,0.22128047,103940.0,103930.0,0.66256498]
[1747057676737,0.22128047,103940.0,103930.0,0.45088443]
[1747057676738,0.20203945,103940.0,103930.0,0.45088443]
[1747057677156,0.20203945,103940.0,103930.0,0.001]
[1747057678385,0.24393945,103940.0,103930.0,0.001]
[1747057683664,0.24693945,103940.0,103930.0,0.001]
[1747057684337,0.20205888,103930.0,103920.0,0.002]
[1747057685072,0.21168046,103930.0,103920.0,0.002]
[1747057685735,0.21268046,103930.0,103920.0,0.002]
[1747057686208,0.25248046,103930.0,103920.0,0.002]
[1747057686427,0.21268046,103930.0,103920.0,0.002]
[1747057686915,0.21368046,103930.0,103920.0,0.002]
[1747057687380,0.25358046,103930.0,103920.0,0.002]
[1747057687834,0.34943476,103930.0,103920.0,0.002]
[1747057688557,0.34743476,103930.0,103920.0,0.002]
[1747057688793,0.21368046,103930.0,103920.0,0.002]
[1747057689271,0.25248046,103930.0,103920.0,0.002]
[1747057689725,0.23278046,103930.0,103920.0,0.002]
[1747057689990,0.21368046,103930.0,103920.0,0.002]
[1747057690213,0.21568046,103930.0,103920.0,0.002]
[1747057690939,0.25458046,103930.0,103920.0,0.002]
[1747057691185,0.35043476,103930.0,103920.0,0.002]
[1747057691869,0.81486004,103930.0,103920.0,0.002]
[1747057692129,1.12486004,103930.0,103920.0,0.002]
[1747057692593,0.66497561,103930.0,103920.0,0.002]
[1747057693259,0.66297561,103930.0,103920.0,0.002]
[1747057693527,0.66097561,103930.0,103920.0,0.002]
[1747057693773,0.66397561,103930.0,103920.0,0.002]
[1747057694025,0.77957561,103930.0,103920.0,0.002]
[1747057694299,0.77957561,103930.0,103920.0,0.19445573]
[1747057694300,0.96794046,103930.0,103920.0,0.19445573]
[1747057694565,0.51344074,103930.0,103920.0,0.002]
[1747057694805,0.36596074,103930.0,103920.0,0.002]
[1747057695293,0.46181504,103930.0,103920.0,0.002]
[1747057695485,0.51825589,103930.0,103920.0,0.002]
[1747057696655,0.96814032,103930.0,103920.0,0.002]
[1747057696885,0.59272101,103910.0,103900.0,0.002]
[1747057697116,2.01616059,103910.0,103900.0,0.00214688]
[1747057697322,2.02616059,103910.0,103900.0,0.00214688]
[1747057697731,2.01616059,103910.0,103900.0,0.00214688]
[1747057697937,1.81601489,103910.0,103900.0,0.00214688]
[1747057698138,1.72016059,103910.0,103900.0,0.00214688]
[1747057698348,1.28027616,103910.0,103900.0,0.00214688]
[1747057698562,2.18992059,103910.0,103900.0,0.00214688]
[1747057698980,2.19592059,103910.0,103900.0,0.00214688]
[1747057699609,2.19192059,103910.0,103900.0,0.00214688]
[1747057700023,2.19792059,103910.0,103900.0,0.00214688]
[1747057700244,2.04816059,103910.0,103900.0,0.00214688]
[1747057700454,2.19964059,103910.0,103900.0,0.00214688]
[1747057700651,1.90064059,103910.0,103900.0,0.00214688]
[1747057700903,2.19952059,103910.0,103900.0,0.00214688]
[1747057701362,2.04816059,103910.0,103900.0,0.00214688]
[1747057701574,0.72511616,103910.0,103900.0,0.00214688]
[1747057701776,0.77629531,103910.0,103900.0,0.00214688]
[1747057701982,1.03389531,103910.0,103900.0,0.00214688]
[1747057702395,1.06843616,103910.0,103900.0,0.00214688]
[1747057703077,1.08243616,103910.0,103900.0,0.00214688]
[1747057703300,1.53032059,103910.0,103900.0,0.00214688]
[1747057703517,1.08043616,103910.0,103900.0,0.00214688]
[1747057703686,1.08443616,103910.0,103900.0,0.00214688]
[1747057705364,1.53432059,103910.0,103900.0,0.00214688]
[1747057705592,1.08443616,103910.0,103900.0,0.00214688]
[1747057706967,0.87881531,103910.0,103900.0,0.01177142]
[1747057707200,0.78296101,103910.0,103900.0,0.00214688]
[1747057707929,0.87081531,103910.0,103900.0,0.00214688]
[1747057708157,0.88635616,103910.0,103900.0,0.00214688]
[1747057708372,1.37744059,103910.0,103900.0,0.00214688]
[1747057708591,2.02744059,103910.0,103900.0,0.00214688]
[1747057708817,2.01744059,103910.0,103900.0,0.00214688]
[1747057709562,2.04327888,103910.0,103900.0,0.00214688]
[1747057709785,2.04527888,103910.0,103900.0,0.00214688]
[1747057710007,2.04327888,103910.0,103900.0,0.00214688]
[1747057710443,2.14313318,103910.0,103900.0,0.00214688]
[1747057710675,2.12388642,103910.0,103880.0,0.002]
[1747057710888,1.44850052,103890.0,103880.0,0.00248988]
[1747057711107,1.61188137,103890.0,103880.0,0.00248988]
[1747057711336,1.62188137,103890.0,103880.0,0.00248988]
[1747057712007,0.22151425,103830.0,103820.0,0.97427409]
[1747057712245,0.21188433,103830.0,103820.0,0.44582898]
[1747057712465,0.21188433,103830.0,103820.0,0.43600094]
[1747057713154,0.21188433,103830.0,103820.0,0.34977869]
[1747057713387,0.21188433,103830.0,103820.0,0.34014664]
[1747057713612,0.20225349,103830.0,103820.0,0.34014664]
[1747057714064,0.20325349,103830.0,103820.0,0.55641979]
[1747057714287,0.001,103830.0,103820.0,1.13105346]
[1747057714516,0.02026086,103830.0,103820.0,1.13105346]
[1747057714709,0.02989133,103830.0,103820.0,1.13105346]
[1747057714913,0.21288415,103830.0,103820.0,0.35414664]
[1747057715126,0.21288415,103830.0,103820.0,0.37464664]
[1747057715551,0.001,103830.0,103820.0,1.16252151]
[1747057715771,0.001,103830.0,103820.0,3.19657751]
[1747057715976,0.001,103830.0,103820.0,3.02552951]
[1747057716217,0.001,103830.0,103820.0,3.71187751]
[1747057716441,0.001,103830.0,103820.0,3.53687551]
[1747057716691,0.001,103830.0,103820.0,3.68651551]
[1747057716917,0.001,103830.0,103820.0,3.69646304]
[1747057718395,0.002,103850.0,103840.0,0.60109347]
[1747057718596,0.002,103850.0,103840.0,2.47894163]
[1747057718798,0.02125714,103850.0,103840.0,1.13720265]
[1747057719023,0.23310085,103850.0,103840.0,0.94459847]
[1747057719251,0.23310085,103850.0,103840.0,1.54683211]
[1747057719450,0.04051521,103850.0,103840.0,1.56046166]
[1747057719693,0.05014439,103850.0,103840.0,1.56046166]
[1747057720099,0.24273068,103850.0,103840.0,1.54120247]
[1747057720275,0.23310141,103850.0,103840.0,1.55083211]
[1747057720478,0.23310141,103850.0,103840.0,1.56046166]
[1747057720750,0.03088678,103850.0,103840.0,1.56446166]
[1747057721196,0.2331015,103850.0,103840.0,1.53557274]
[1747057721452,0.2138438,103850.0,103840.0,0.348]
[1747057722464,0.2138438,103850.0,103840.0,0.344]
[1747057722709,0.2555438,103850.0,103840.0,0.004]
[1747057722964,0.20223401,103840.0,103830.0,0.34]
[1747057723690,0.21188433,103830.0,103820.0,0.19378774]
[1747057723910,0.21188433,103830.0,103820.0,0.00114664]
[1747057724143,0.21188433,103830.0,103820.0,0.34114664]
[1747057724860,0.22151536,103830.0,103820.0,1.00293599]
[1747057725280,0.22151536,103830.0,103820.0,1.00293608]
[1747057725527,0.21188452,103830.0,103820.0,1.01256785]
[1747057725734,0.21188452,103830.0,103820.0,1.00293608]
[1747057726201,0.21188451,103830.0,103820.0,0.99330403]
[1747057726966,0.192604,103840.0,103830.0,0.20225367]
[1747057727194,0.2022342,103840.0,103830.0,0.64250698]
[1747057727435,0.2022342,103840.0,103830.0,0.65213792]
[1747057727661,0.22149412,103840.0,103830.0,0.67139933]
[1747057728124,0.00962955,103840.0,103830.0,0.6840298]
[1747057728371,0.2311234,103840.0,103830.0,0.69529942]
[1747057728636,0.02888892,103840.0,103830.0,1.15041476]
[1747057728886,0.002,103850.0,103840.0,0.56149347]
[1747057729102,0.22347215,103850.0,103840.0,1.00174835]
[1747057729329,0.002,103850.0,103840.0,1.13746193]
[1747057729539,0.03088576,103850.0,103840.0,1.15846193]
[1747057729747,0.03088567,103850.0,103840.0,1.55846193]
[1747057730379,0.04051457,103850.0,103840.0,1.55946193]
[1747057730555,0.03088567,103850.0,103840.0,1.55946193]
[1747057730856,0.002,103850.0,103840.0,1.55946193]
[1747057731018,0.002,103850.0,103840.0,4.08684121]
[1747057731231,0.002,103870.0,103860.0,0.56145082]
[1747057731403,0.01162667,103870.0,103860.0,1.12828955]
[1747057731596,0.002,103870.0,103860.0,1.14848955]
[1747057732045,0.01162658,103870.0,103860.0,1.54848955]
[1747057732189,0.02125325,103870.0,103860.0,1.54848955]
[1747057732414,0.02125325,103870.0,103860.0,1.48808044]
[1747057732415,0.23305673,103870.0,103860.0,1.48808044]
[1747057732616,0.23305673,103870.0,103860.0,1.49770832]
[1747057732864,0.21380292,103870.0,103860.0,1.28588537]
[1747057733215,0.21380292,103870.0,103860.0,1.39222623]
[1747057733414,0.21380292,103870.0,103860.0,1.41148245]
[1747057733784,0.21380292,103870.0,103860.0,1.43298906]
[1747057733985,0.20417578,103870.0,103860.0,1.42336109]
[1747057734188,0.20417578,103870.0,103860.0,1.43498906]
[1747057734426,0.20417578,103870.0,103860.0,1.42536109]
[1747057734860,0.19454837,103870.0,103860.0,1.40610487]
[1747057735048,0.19454837,103870.0,103860.0,1.41573303]
[1747057735935,0.27132012,103870.0,103860.0,0.00414664]
[1747057736170,0.31072012,103870.0,103860.0,0.00414664]
[1747057736814,0.46032012,103870.0,103860.0,0.00414664]
[1747057737032,0.38354837,103870.0,103860.0,0.00414664]
[1747057738871,0.34414837,103870.0,103860.0,0.00414664]
[1747057740141,0.34414837,103870.0,103860.0,0.21596995]
[1747057740368,0.2041756,103870.0,103860.0,0.67548235]
[1747057740575,0.002,103870.0,103860.0,1.14056434]
[1747057740804,0.002,103870.0,103860.0,1.16056434]
[1747057741266,0.002,103890.0,103880.0,0.24080819]
[1747057741520,0.002,103890.0,103880.0,1.82033135]
[1747057741991,0.002,103890.0,103880.0,1.77044692]
[1747057742447,0.21376179,103890.0,103880.0,1.25228414]
[1747057742666,0.21376179,103890.0,103880.0,1.60191053]
[1747057742905,0.21376179,103890.0,103880.0,1.61153665]
[1747057743134,0.20413669,103890.0,103880.0,0.9834543]
[1747057743364,0.19451131,103890.0,103880.0,0.93252984]
[1747057743571,0.19451131,103890.0,103880.0,0.95478254]
[1747057743832,0.002,103890.0,103880.0,1.0698888]
[1747057744058,0.002,103890.0,103880.0,1.51977323]
[1747057744270,0.01162482,103890.0,103880.0,1.51977323]
[1747057744479,0.01162482,103890.0,103880.0,1.52277323]
[1747057744634,0.02124992,103890.0,103880.0,1.0728888]
[1747057744844,0.02124982,103890.0,103880.0,1.0728888]
[1747057745054,0.03087566,103890.0,103880.0,1.04401044]
[1747057745233,0.02125019,103890.0,103880.0,1.51314683]
[1747057745429,0.002,103890.0,103880.0,1.51314683]
[1747057745694,0.02124964,103890.0,103880.0,1.53284683]
[1747057745847,0.01162473,103890.0,103880.0,1.54732796]
[1747057746079,0.002,103890.0,103880.0,1.54732796]
[1747057746278,0.01162491,103890.0,103880.0,1.54732796]
[1747057746477,0.02125001,103890.0,103880.0,1.54732796]
[1747057746679,0.03087539,103890.0,103880.0,1.54732796]
[1747057746868,0.02125001,103890.0,103880.0,1.54732796]
[1747057747065,0.22338707,103890.0,103880.0,0.746]
[1747057747274,0.21376197,103890.0,103880.0,0.746]
[1747057747473,0.02125001,103890.0,103880.0,0.97703431]
[1747057747739,0.002,103890.0,103880.0,1.52277304]
[1747057748999,0.01162482,103890.0,103880.0,1.52277304]
[1747057749224,0.02124982,103890.0,103880.0,1.93907304]
[1747057749839,0.02124992,103890.0,103880.0,1.93907304]
[1747057750054,0.02124982,103890.0,103880.0,1.93907304]
[1747057750679,0.01162473,103890.0,103880.0,1.93907304]
[1747057750925,0.002,103890.0,103880.0,2.57815747]
[1747057751108,0.002,103890.0,103880.0,5.59269832]
[1747057751335,0.002,103890.0,103880.0,3.99431832]
[1747057751554,0.01162482,103890.0,103880.0,2.32410389]
[1747057751765,0.02124973,103890.0,103880.0,1.78410861]